[Event "Aktobe Open 2022"]
[Site "Aktobe"]
[Date "2022.06.16"]
[Round "4.7"]
[White "Volkov, Sergey"]
[Black "Ansat, Aldiyar"]
[Result "1-0"]
[ECO "D97"]
[WhiteElo "2510"]
[BlackElo "2314"]
[Annotator "TA"]
[PlyCount "95"]
[EventDate "2022.06.14"]
[EventType "swiss"]
[EventCountry "KAZ"]
[SourceTitle "playchess.com"]
[Source "ChessBase"]
[SourceQuality "1"]
[TimeControl "5400+30"]

{[%evp 14,95,34,26,27,26,40,34,39,36,38,37,37,39,44,35,35,39,37,45,47,37,38,21,39,44,42,47,40,8,2,2,2,9,6,0,0,0,0,0,61,61,61,60,69,69,75,48,76,76,76,76,168,156,193,190,199,199,199,199,197,139,125,133,139,140,128,139,126,138,291,280,303,293,500,502,507,497,540,531,525,510,6103,5783]} 1. d4 {[%emt 0:00:03]} Nf6 {[%emt 0:04:55]} 2. c4 {[%emt 0:00:09]} g6 {[%emt 0:00:05]} 3. Nc3 {[%emt 0:00:07]} d5 {[%emt 0:00:05]} 4. Nf3 {[%emt 0:00:08]} Bg7 {[%emt 0:00:04]} 5. Qb3 {[%emt 0:00:07]} dxc4 {[%emt 0:00:04]} 6. Qxc4 {[%emt 0:00:04]} O-O {[%emt 0:00:04]} 7. e4 {[%emt 0:00:09]} Nc6 {[%emt 0:00:03]} 8. Be2 {[%emt 0:00:43]} e5 {[%emt 0:00:04][%cal Re5d4] D97: Grünfeld: Russian System: 7 e4, replies other than 7...Bg4.} 9. d5 {[%emt 0:00:11]} (9. Nxe5 Nxd4 10. O-O {[#]} Nxe4 $1 {[%mdl 512]} 11. Nxe4 Be6 $17) 9... Nd4 {[%emt 0:00:05]} 10. Nxd4 {[%emt 0:00:08]} exd4 {[%emt 0:00:13] White is slightly better.} 11. Qxd4 {[%emt 0:00:03]} c6 {[%emt 0:00:06][%cal Of6d5]} 12. Qc4 {[%emt 0:00:44]} b5 {[%emt 0:00:03]} 13. Qxc6 {[%emt 0:00:09]} Bd7 {[%emt 0:00:04]} 14. Qd6 {[%emt 0:00:21]} Re8 {[%emt 0:00:04]} 15. Bg5 {[%emt 0:00:23] 15.Bg5 has become a bit dusty these days.} b4 {[%emt 0:00:06]} 16. Qxb4 {[%emt 0:00:10]} Nxd5 {[%emt 0:00:05]} 17. Nxd5 {[%emt 0:00:13]} ({Reject} 17. Bxd8 Nxb4 18. Bg5 Nc2+ 19. Kd2 Nxa1 20. Rxa1 Rab8 $17) 17... Qxg5 {[%emt 0:00:04]} 18. O-O {[%emt 0:00:06]} Rab8 {[%emt 0:00:04]} 19. Qd6 {[%emt 0:00:16]} Be6 {[%emt 0:49:33] A strong pair of Bishops.} 20. f4 {[%emt 0:08:59]} Qh4 {[%emt 0:08:08] [#]} 21. Rab1 $146 {[%emt 0:12:48]} ({Predecessor:} 21. Rad1 Bf8 22. Qa6 Bxd5 23. exd5 Rxb2 24. Bf3 Qxf4 25. d6 Rb6 26. Qxa7 Qe3+ 27. Kh1 Rxd6 28. Qxe3 Rxe3 29. Rxd6 Bxd6 {½-½ (36) Radjabov,T (2734)-Aronian,L (2797) Beijing 2014}) 21... Rbd8 {[%emt 0:16:09][%cal Bb8d8,Bd8d5,Bd5c5][%mdl 32]} 22. Qa6 {[%emt 0:01:44]} Bxd5 {[%emt 0:00:12]} 23. exd5 {[%emt 0:00:08]} Rxd5 {[%emt 0:00:07]} 24. Qc6 {[%emt 0:07:32]} Qd8 {[%emt 0:05:25]} 25. Bc4 {[%emt 0:01:59]} Rc5 {[%emt 0:01:59]} 26. Qa4 {[%emt 0:00:49]} ({Don't blunder} 26. Bxf7+ $2 Kxf7 27. Qb7+ Re7 $19) 26... Qd4+ {[%emt 0:08:29]} (26... Re7 $11 27. Kh1 Qc7) 27. Kh1 $14 {[%emt 0:00:55]} Re7 {[%emt 0:00:55]} 28. b3 {[%emt 0:01:00]} Bf6 {[%emt 0:01:22]} 29. Rbd1 {[%emt 0:04:07]} Qc3 {[%emt 0:00:13]} 30. Rc1 {[%emt 0:00:43]} (30. Rd3 $5 {[%cal Rd3c3]} Qa5 31. Qxa5 Rxa5 32. a4 $16) 30... Qa5 {[%emt 0:02:44]} 31. Qxa5 {[%emt 0:00:39]} Rxa5 {[%emt 0:00:02]} 32. a4 {[%emt 0:00:25]} a6 {[%emt 0:01:21] Inhibits Bb5.} (32... Rh5 $16 {was called for.}) 33. Rcd1 $18 {[%emt 0:02:24]} Re3 {[%emt 0:03:28]} 34. Rd6 {[%emt 0:01:58]} Be7 {[%emt 0:00:06]} 35. Rc6 {[%emt 0:00:12]} ({Don't play} 35. Rxa6 $6 Rxa6 36. Bxa6 Rxb3 $14) 35... Kg7 {[%emt 0:00:56]} 36. g3 {[%emt 0:04:14]} Rh5 {[%emt 0:00:03]} 37. Rxa6 {[%emt 0:02:26]} (37. Kg2 $18) 37... Rxg3 $16 {[%emt 0:00:12]} 38. Ra7 {[%emt 0:00:44][%cal Ba6a7,Ba7f7,Bf7d7,Bd7d2,Bd2a2][%mdl 32]} Bc5 {[%emt 0:01:15]} 39. Rxf7+ {[%emt 0:00:11]} Kh6 {[%emt 0:00:03]} 40. Rd7 {[%emt 0:06:46] Bg8 is the strong threat.} Rgh3 {[%emt 0:00:56][%csl Gh5][%cal Rh3h2]} 41. Rd2 {[%emt 0:01:03]} R5h4 $2 {[%emt 0:00:26] This costs Black the game.} (41... Bb4 $16 42. Ra2 Ba5) 42. a5 $18 {[%emt 0:09:16]} Be3 {[%emt 0:00:18]} 43. Ra2 {[%emt 0:00:24]} Bxf4 $2 {[%emt 0:00:46] [#]} (43... Ba7 44. a6 Re3) 44. Rxf4 $1 {[%emt 0:03:58][%mdl 512] White is clearly winning.} Rxf4 {[%emt 0:00:01]} 45. a6 {[%emt 0:00:07]} Re3 {[%emt 0:01:01]} 46. a7 {[%emt 0:01:17]} Re1+ {[%emt 0:00:29]} 47. Kg2 {[%emt 0:00:06]} Ree4 {[%emt 0:00:29]} (47... Rf8 $142 48. a8=Q Rxa8 49. Rxa8 Kg5) 48. a8=Q {[%emt 0:01:06] Weighted Error Value: White=0.03 (flawless) /Black=0.20 (precise)} 1-0

[Event "Aktobe Open 2022"]
[Site "Aktobe"]
[Date "2022.06.16"]
[Round "4.8"]
[White "Urazayev, Arystanbek"]
[Black "Serikbay, Assel"]
[Result "1-0"]
[ECO "D85"]
[WhiteElo "2445"]
[BlackElo "2238"]
[Annotator "TA"]
[PlyCount "75"]
[EventDate "2022.06.14"]
[EventType "swiss"]
[EventCountry "KAZ"]
[SourceTitle "playchess.com"]
[Source "ChessBase"]
[SourceQuality "1"]
[TimeControl "5400+30"]

{[%evp 19,75,7,6,0,0,0,0,0,0,0,0,0,0,0,0,0,0,0,0,0,0,0,16,0,0,-4,0,0,8,8,8,8,8,8,8,8,10,0,0,0,72,12,55,57,72,29,35,0,237,0,0,0,408,408,408,383,670,594]} 1. d4 {[%emt 0:00:04]} Nf6 {[%emt 0:00:07]} 2. c4 {[%emt 0:00:30]} g6 {[%emt 0:00:05]} 3. Nc3 {[%emt 0:00:09]} d5 {[%emt 0:00:05]} 4. Nf3 {[%emt 0:00:50]} Bg7 {[%emt 0:00:09]} 5. cxd5 {[%emt 0:00:34]} Nxd5 {[%emt 0:00:06]} 6. e4 {[%emt 0:00:04]} Nxc3 {[%emt 0:00:07]} 7. bxc3 {[%emt 0:00:03]} c5 {[%emt 0:00:08]} 8. Bb5+ {[%emt 0:00:07]} Nc6 {[%emt 0:00:32]} 9. O-O {[%emt 0:00:14]} O-O {[%emt 0:00:56]} 10. Bxc6 $1 {[%emt 0:00:04][%mdl 4] is recently more successful than 10.Be3.} bxc6 {[%emt 0:00:08]} 11. Qc2 {[%emt 0:00:07] D85: Exchange Grünfeld: Unusual White 7th moves and lines with 7 Nf3.} cxd4 {[%emt 0:08:36]} 12. cxd4 {[%emt 0:02:10]} Bg4 {[%emt 0:05:59]} 13. Ne5 {[%emt 0:00:13] The position is equal.} Qxd4 {[%emt 0:02:18]} 14. Bb2 {[%emt 0:00:11][%cal Bc1b2,Bb2e5,Be5c3][%mdl 32]} Qb6 {[%emt 0:00:10]} 15. Rab1 {[%emt 0:01:33]} Bxe5 {[%emt 0:01:15]} 16. Bxe5 {[%emt 0:00:07]} Qa5 {[%emt 0:00:07]} 17. Bc3 {[%emt 0:00:47]} Qc5 {[%emt 0:01:17]} 18. Qb2 {[%emt 0:03:37]} a5 {[%emt 0:09:56]} 19. Rfc1 {[%emt 0:01:29]} Qd6 {[%emt 0:10:25]} 20. Be5 {[%emt 0:00:49] [#]} Qd3 $146 {[%emt 0:04:17]} ({Predecessor:} 20... Qd7 21. Qc3 Rfd8 22. Qxc6 Rac8 23. Qxd7 Rxc1+ 24. Rxc1 Bxd7 25. Bc7 Rc8 26. Bf4 Rxc1+ 27. Bxc1 f6 28. f3 Kf7 29. a4 Bxa4 30. Bd2 Bb5 {½-½ (30) Andreikin,D (2724)-Shankland,S (2708) Belgrade 2022}) 21. f3 {[%emt 0:06:54]} Be6 {[%emt 0:01:01]} 22. Qf2 {[%emt 0:05:28]} Rfd8 {[%emt 0:05:42]} 23. Qc5 {[%emt 0:08:52]} Bxa2 {[%emt 0:09:21]} 24. Ra1 {[%emt 0:01:05]} Qe2 {[%emt 0:18:25] [#] ( -> ...Rd2)} 25. Re1 {[%emt 0:03:03]} Qc4 {[%emt 0:01:05]} 26. Qxe7 {[%emt 0:01:35] Strongly threatening Qf6.} Qe6 $132 {[%emt 0:00:08][%mdl 2048] Black is fighting back} 27. Qg5 {[%emt 0:05:15][%cal Oa1a2] Hoping for Rxa2!} h6 $1 {[%emt 0:04:47]} 28. Qf4 {[%emt 0:02:20][%cal Oa1a2] [#] Black must now prevent Rxa2!} g5 {[%emt 0:06:19]} 29. Qg3 {[%emt 0:00:58]} Rd2 {[%emt 0:00:23]} (29... a4 $11 {remains equal.}) 30. h4 {[%emt 0:05:23]} ({White should try} 30. f4 $16) 30... f6 {[%emt 0:00:26]} 31. Bc3 {[%emt 0:01:53]} Rc2 {[%emt 0:03:30]} 32. hxg5 {[%emt 0:03:34]} hxg5 {[%emt 0:01:23]} 33. Re3 {[%emt 0:05:15]} Kf7 $2 {[%emt 0:05:22]} (33... Qe7 $1 $11 {and Black is okay.}) 34. Qc7+ $2 {[%emt 0:03:16]} (34. Rd3 $18) 34... Qe7 $11 {[%emt 0:00:04]} 35. Qxc6 {[%emt 0:01:39] And now Rxa2 would win.} Ra7 $2 {[%emt 0:01:34][%mdl 8192]} ({Don't do} 35... Rh8 36. e5 (36. Qa4 Qa7 $11) 36... Qe6 37. Qxe6+ Bxe6 38. exf6 $16) (35... Be6 $11 36. Qxa8 Qc5) 36. Qa4 $1 $18 {[%emt 0:02:22][%csl LRa2,LRa5,LRc2]} Qc5 {[%emt 0:00:20]} 37. Bd4 {[%emt 0:01:24] Dancing on a razor blade.} ({Weaker is} 37. Qxc2 Qxe3+ 38. Qf2 Qxf2+ 39. Kxf2 Be6 $14) 37... Rc1+ {[%emt 0:00:07]} (37... Qc7 38. Bxa7 Qxa7 39. Qxc2 Qxe3+ 40. Qf2 Qxf2+ 41. Kxf2 Be6 42. Rxa5 Kg7) 38. Re1 {[%emt 0:01:05] Weighted Error Value: White=0.17 (very precise) /Black=0.51} 1-0

[Event "Aktobe Open 2022"]
[Site "Aktobe"]
[Date "2022.06.16"]
[Round "4.9"]
[White "Averin, Nikolay"]
[Black "Katenov, Aibek"]
[Result "1-0"]
[ECO "B19"]
[WhiteElo "2427"]
[BlackElo "2161"]
[Annotator "TA"]
[PlyCount "51"]
[EventDate "2022.06.14"]
[EventType "swiss"]
[EventCountry "KAZ"]
[SourceTitle "playchess.com"]
[Source "ChessBase"]
[SourceQuality "1"]
[TimeControl "5400+30"]

{[%evp 26,51,16,22,21,14,5,0,0,0,0,0,0,0,0,0,0,0,0,-55,458,483,29987,29988,29988,29989,29988,5293]} 1. e4 {[%emt 0:00:01]} c6 {[%emt 0:10:49]} 2. d4 {[%emt 0:00:15]} d5 {[%emt 0:00:02]} 3. Nd2 {[%emt 0:00:36]} dxe4 {[%emt 0:00:10]} 4. Nxe4 {[%emt 0:00:01]} Bf5 {[%emt 0:00:09]} 5. Ng3 {[%emt 0:00:24]} Bg6 {[%emt 0:00:02]} 6. h4 {[%emt 0:02:17]} h6 {[%emt 0:00:03]} 7. h5 {[%emt 0:00:44]} Bh7 {[%emt 0:00:02]} 8. Nf3 {[%emt 0:00:15]} Nd7 {[%emt 0:00:02]} 9. Bd3 {[%emt 0:00:17]} Bxd3 {[%emt 0:00:03]} 10. Qxd3 {[%emt 0:00:01]} e6 {[%emt 0:00:01]} 11. Bd2 {[%emt 0:01:01]} Ngf6 {[%emt 0:01:03]} 12. O-O-O {[%emt 0:00:30]} Be7 {[%emt 0:00:13]} 13. Ne4 {[%emt 0:12:11]} Nxe4 {[%emt 1:24:21]} 14. Qxe4 Nf6 {[%emt 0:00:00] Inhibits Qg4. B19: Classical Caro-Kann: 4...Bf5 main line.} 15. Qd3 {[%emt 0:11:34]} O-O {[%emt 0:00:00]} 16. g4 {[%emt 0:13:02]} Nxg4 {[%emt 0:00:00] The position is equal.} 17. Rhg1 $1 {[%emt 0:02:12]} Nxf2 {[%emt 0:00:00]} 18. Qe2 {[%emt 0:01:29][%cal Od2h6] [#] aiming for Bxh6!} Nxd1 {[%emt 0:00:00]} 19. Bxh6 $1 {[%emt 0:00:18]} Bf6 {[%emt 0:00:00][%cal Og8h8] Strongly threatening ...Kh8!} 20. Bxg7 {[%emt 0:02:42]} Bxg7 {[%emt 0:00:00]} 21. h6 $1 $40 {[%emt 0:00:08][%mdl 192] Pin. White has some attack.} Qf6 {[%emt 0:00:00]} 22. hxg7 {[%emt 0:10:32] [#]} ({Better is} 22. Rxg7+ $11 Kh8 23. Ng5 Qf4+ 24. Kxd1) 22... Qf4+ $146 {[%emt 0:00:00][%mdl 8192] [#] This costs Black the game.} (22... Qh6+ $1 $15 {stays ahead.} 23. Kb1 Rfd8 24. Qxd1 Rd5) ({Predecessor:} 22... Qh6+ 23. Kb1 Rfd8 24. Rxd1 Rd5 25. Ne5 Rad8 26. a3 Rxd4 27. Rg1 f5 28. Ng6 Rd1+ 29. Rxd1 Rxd1+ 30. Qxd1 Qxg6 {0-1 (45) Horvath,A (2532)-Michalik,P (2565) Meissen 2013}) 23. Nd2 $1 $18 {[%emt 0:03:15] Threatening mate with Qh5.} Nxb2 {[%emt 0:00:00]} (23... Qh4 $18 24. gxf8=N+ Kxf8) 24. Qh5 {[%emt 0:04:26][%csl Gg7][%cal Rh5h8] White mates.} f5 {[%emt 0:00:00]} 25. gxf8=R+ {[%emt 0:01:07]} Kxf8 {[%emt 0:00:00]} 26. Qh7 {[%emt 0:00:51] Weighted Error Value: White=0.08 (flawless) /Black=1.71} (26. Qh8+ $142 Ke7 27. Rg7+ Kd6 28. Qxa8 Qxd4 29. Qd8+ Ke5 30. Nf3+ Ke4 31. Qxd4+ Kxf3 32. Qe5) 1-0

[Event "Aktobe Open 2022"]
[Site "Aktobe"]
[Date "2022.06.17"]
[Round "5.1"]
[White "Agmanov, Zhandos"]
[Black "Utegaliyev, Azamat"]
[Result "1/2-1/2"]
[ECO "B29"]
[WhiteElo "2420"]
[BlackElo "2463"]
[Annotator "TA"]
[PlyCount "34"]
[EventDate "2022.06.14"]
[EventType "swiss"]
[EventCountry "KAZ"]
[SourceTitle "playchess.com"]
[Source "ChessBase"]
[SourceQuality "1"]
[TimeControl "5400+30"]

{[%evp 12,34,40,38,46,37,28,0,0,0,0,0,14,0,0,0,25,-12,0,0,0,-2,0,0,0]} 1. e4 {[%emt 0:00:15]} c5 {[%emt 0:07:51]} 2. Nf3 {[%emt 0:01:16]} Nf6 {[%emt 0:00:23]} 3. e5 {[%emt 0:00:41]} Nd5 {[%emt 0:00:04]} 4. Nc3 {[%emt 0:00:10]} Nxc3 {[%emt 0:00:13]} 5. dxc3 {[%emt 0:00:26]} Nc6 {[%emt 0:00:04]} 6. Bc4 {[%emt 0:04:37]} e6 {[%emt 0:00:32]} 7. Bf4 {[%emt 0:03:28]} Qb6 {[%emt 0:00:24] B29: Sicilian: 2 Nf3 Nf6 (Nimzowitsch Variation).} 8. Rb1 {[%emt 0:03:57]} Qc7 {[%emt 0:00:21]} 9. Qd2 {[%emt 0:00:58]} h6 {[%emt 0:00:38]} 10. h4 {[%emt 0:00:58]} b6 {[%emt 0:00:26] [#]} 11. Rd1 $146 {[%emt 0:29:52]} ({Predecessor:} 11. a4 Bb7 12. h5 O-O-O 13. Rd1 Be7 14. Rh3 Rdg8 15. Qe2 g5 16. hxg6 fxg6 17. Rxh6 Rxh6 18. Bxh6 {0-1 (35) Navara,D (2682)-Rakhmanov,A (2640) Chess.com INT 2022}) 11... Bb7 {[%emt 0:01:23]} 12. h5 {[%emt 0:09:58]} O-O-O {[%emt 0:04:30]} 13. Bg3 {[%emt 0:03:10]} Ne7 {[%emt 0:06:23]} 14. Bd3 {[%emt 0:13:46]} Rg8 {[%emt 0:16:24] The position is equal.} 15. Bh7 {[%emt 0:00:15]} Rh8 {[%emt 0:00:56]} 16. Bd3 {[%emt 0:00:01]} Rg8 {[%emt 0:09:49]} 17. Bh7 {[%emt 0:01:22]} Rh8 {[%emt 0:00:05] Weighted Error Value: White=0.07 (flawless) /Black=0.04 (flawless)} 1/2-1/2

[Event "Aktobe Open 2022"]
[Site "Aktobe"]
[Date "2022.06.17"]
[Round "5.3"]
[White "Nogerbek, Kazybek"]
[Black "Rychagov, Andrey"]
[Result "1/2-1/2"]
[ECO "D37"]
[WhiteElo "2424"]
[BlackElo "2549"]
[Annotator "TA"]
[PlyCount "42"]
[EventDate "2022.06.14"]
[EventType "swiss"]
[EventCountry "KAZ"]
[SourceTitle "playchess.com"]
[Source "ChessBase"]
[SourceQuality "1"]
[TimeControl "5400+30"]

{[%evp 11,29,10,15,16,26,25,19,23,17,17,24,37,35,31,27,40,32,32,32,29]} 1. d4 {[%emt 0:00:04]} d5 {[%emt 0:00:13]} 2. c4 {[%emt 0:00:09]} e6 {[%emt 0:00:09]} 3. Nf3 {[%emt 0:00:08]} Nf6 {[%emt 0:00:09]} 4. Nc3 {[%emt 0:00:09]} Be7 {[%emt 0:00:11]} 5. Bf4 {[%emt 0:00:15]} O-O {[%emt 0:00:13]} 6. e3 {[%emt 0:00:06]} Nbd7 {[%emt 0:01:13]} 7. a3 {[%emt 0:00:16] D37: Queen's Gambit Declined: 5 Bf4.} c5 {[%emt 0:00:50]} (7... c6 {keeps more tension.} 8. cxd5 Nxd5 9. Nxd5 exd5 10. Bd3 c5) 8. cxd5 {[%emt 0:00:09]} Nxd5 {[%emt 0:00:07]} 9. Nxd5 {[%emt 0:00:10] The position is equal.} exd5 {[%emt 0:00:04]} 10. dxc5 $1 {[%emt 0:00:09]} Nxc5 {[%emt 0:00:08]} 11. Be5 {[%emt 0:00:04]} Bf6 {[%emt 0:09:27]} 12. Bxf6 {[%emt 0:01:24]} Qxf6 {[%emt 0:00:05]} 13. Qd4 {[%emt 0:00:15]} Qxd4 {[%emt 0:12:32]} 14. Nxd4 {[%emt 0:02:30]} Bd7 {[%emt 0:00:28]} 15. Be2 {[%emt 0:01:36] [#]  Weighted Error Value: White=0.00 (flawless) /Black=0.03 (flawless)} {Predecessor:} Rac8 $146 16. b4 Ne4 17. O-O Rc7 18. Rfc1 Rfc8 19. Rxc7 Rxc7 20. Kf1 Kf8 21. Ke1 Ke7 {1-0 (67) Nyzhnyk,I (2616)-Moradiabadi,E (2580) Kenner 2016} 1/2-1/2

[Event "Aktobe Open 2022"]
[Site "Aktobe"]
[Date "2022.06.17"]
[Round "5.4"]
[White "Sadubayev, Airat"]
[Black "Volkov, Sergey"]
[Result "1/2-1/2"]
[ECO "C06"]
[WhiteElo "2317"]
[BlackElo "2510"]
[Annotator "TA"]
[PlyCount "84"]
[EventDate "2022.06.14"]
[EventType "swiss"]
[EventCountry "KAZ"]
[SourceTitle "playchess.com"]
[Source "ChessBase"]
[SourceQuality "1"]
[TimeControl "5400+30"]

{[%evp 26,84,31,30,30,19,28,24,20,33,31,41,28,24,27,17,22,25,30,24,20,6,15,0,0,0,5,0,0,-8,0,0,0,0,0,0,0,0,0,0,0,0,0,0,0,0,0,0,0,0,0,0,0,0,0,0,0,0,0,0,0]} 1. e4 {[%emt 0:00:42]} e6 {[%emt 0:00:05]} 2. d4 {[%emt 0:00:08]} d5 {[%emt 0:00:04]} 3. Nd2 {[%emt 0:00:18]} Nf6 {[%emt 0:01:09]} 4. e5 {[%emt 0:00:34]} Nfd7 {[%emt 0:00:05]} 5. Bd3 {[%emt 0:00:21]} c5 {[%emt 0:00:06]} 6. c3 {[%emt 0:00:09]} Nc6 {[%emt 0:00:06]} 7. Ne2 {[%emt 0:00:12]} cxd4 {[%emt 0:00:21]} 8. cxd4 {[%emt 0:00:11]} f6 {[%emt 0:00:12]} 9. exf6 {[%emt 0:00:15]} Nxf6 {[%emt 0:00:46]} 10. O-O {[%emt 0:01:04]} Bd6 {[%emt 0:00:13]} 11. Nf3 {[%emt 0:00:26]} O-O {[%emt 0:00:26]} 12. Bf4 {[%emt 0:01:14]} Bxf4 {[%emt 0:00:09]} 13. Nxf4 {[%emt 0:00:11]} Ng4 {[%emt 0:00:10]} 14. Qd2 {[%emt 0:01:01]} Qf6 {[%emt 0:00:34][%csl LRd4,LRf4] C06: French Tarrasch: 3...Nf6 4 e5 Nfd7 5 Bd3 main lines.} 15. Nh5 $1 {[%emt 0:00:31][%cal Bf4h5,Bh5g3,Bg3f1,Bf1e3][%mdl 32] The main line 15.Nh5 scores better than 15.Ne2.} Qh6 {[%emt 0:00:06]} 16. Qxh6 {[%emt 0:00:11]} Nxh6 {[%emt 0:00:03] White has an edge.} 17. Rac1 {[%emt 0:00:21]} g6 {[%emt 0:00:16]} 18. Ng3 {[%emt 0:00:35]} a6 {[%emt 0:00:04]} 19. Rfe1 {[%emt 0:05:53]} Nf7 {[%emt 0:04:05]} 20. Nf1 {[%emt 0:08:24]} Bd7 {[%emt 0:01:13]} 21. Ne3 {[%emt 0:00:43]} Kg7 {[%emt 0:01:49]} 22. a3 {[%emt 0:03:36] [#]} Rac8 $146 {[%emt 0:01:15]} ({Predecessor:} 22... h5 23. h4 Rad8 24. Rc5 Rfe8 25. Nc2 Rc8 26. Kf1 Kf6 27. Nb4 b6 28. Rcc1 Nxb4 29. axb4 {½-½ (42) Vokhidov,S (2446)-Volkov,S (2568) St Petersburg 2018}) 23. Rc3 {[%emt 0:19:43] The position is equal.} Na7 {[%emt 0:05:43][%cal Bc6a7,Ba7c8,Bc8d6][%mdl 32]} 24. Rec1 {[%emt 0:01:29]} Rxc3 {[%emt 0:00:25]} 25. Rxc3 {[%emt 0:00:13] Hoping for Rc7.} Rc8 {[%emt 0:02:21] Inhibits Rc7.} 26. Rxc8 {[%emt 0:00:59]} Nxc8 {[%emt 0:00:11]} 27. Nd1 {[%emt 0:03:05]} Kf6 {[%emt 0:01:21]} 28. Ne3 {[%emt 0:02:47]} Ncd6 {[%emt 0:01:23]} 29. Kf1 {[%emt 0:02:08]} Bb5 {[%emt 0:00:45]} 30. Ke2 {[%emt 0:00:41]} Bxd3+ {[%emt 0:02:20]} 31. Kxd3 $11 {[%emt 0:00:11][%mdl 4096] Endgame KNN-KNN} h5 {[%emt 0:00:23]} 32. h4 {[%emt 0:01:48]} b5 {[%emt 0:04:58]} 33. b3 {[%emt 0:03:46] Against Nc4} a5 {[%emt 0:02:39]} 34. g3 {[%emt 0:01:49]} Ne4 {[%emt 0:01:13]} 35. Ke2 {[%emt 0:03:00]} Ned6 {[%emt 0:20:38]} 36. Kd3 {[%emt 0:01:16]} g5 {[%emt 0:09:02]} 37. hxg5+ {[%emt 0:04:37]} Nxg5 {[%emt 0:00:37]} 38. Ne5 {[%emt 0:02:11]} Nge4 {[%emt 0:00:28]} 39. Nd1 {[%emt 0:01:07]} a4 {[%emt 0:08:55]} 40. bxa4 {[%emt 0:02:19]} bxa4 {[%emt 0:00:07]} 41. Nd7+ {[%emt 0:01:16]} Ke7 {[%emt 0:03:14]} 42. Nb6 {[%emt 0:00:47]} Nb5 {[%emt 0:00:13] Weighted Error Value: White=0.02 (flawless) /Black=0.01 (flawless)} 1/2-1/2

[Event "Aktobe Open 2022"]
[Site "Aktobe"]
[Date "2022.06.17"]
[Round "5.5"]
[White "Vakhidov, Jakhongir"]
[Black "Averin, Nikolay"]
[Result "1-0"]
[ECO "E65"]
[WhiteElo "2552"]
[BlackElo "2427"]
[Annotator "TA"]
[PlyCount "73"]
[EventDate "2022.06.14"]
[EventType "swiss"]
[EventCountry "KAZ"]
[SourceTitle "playchess.com"]
[Source "ChessBase"]
[SourceQuality "1"]
[TimeControl "5400+30"]

{[%evp 21,73,39,33,51,72,80,96,102,91,80,93,84,125,125,138,134,144,152,300,301,311,298,382,390,390,387,379,381,410,327,350,351,336,338,498,506,502,498,477,483,845,842,828,823,1166,1138,1166,1156,1998,1936,2384,2116,29971,12028]} 1. c4 {[%emt 0:00:04]} c5 {[%emt 0:00:23]} 2. g3 {[%emt 0:01:10]} Nc6 {[%emt 0:00:53]} 3. Bg2 {[%emt 0:00:08]} g6 {[%emt 0:00:11]} 4. Nc3 {[%emt 0:00:08]} Bg7 {[%emt 0:00:04]} 5. Nf3 {[%emt 0:00:08]} Nf6 {[%emt 0:00:05]} 6. d4 {[%emt 0:00:17]} cxd4 {[%emt 0:00:05]} 7. Nxd4 {[%emt 0:00:06]} O-O {[%emt 0:00:15]} 8. O-O {[%emt 0:00:10]} d6 {[%emt 0:00:32]} 9. Nxc6 {[%emt 0:00:15]} bxc6 {[%emt 0:00:03]} 10. Bxc6 {[%emt 0:00:09]} Rb8 {[%emt 0:00:01]} 11. Bg2 {[%emt 0:00:12]} Qa5 {[%emt 0:00:13]} 12. Nb5 {[%emt 0:05:36] 12.Qd2 might become the main line. E65: King's Indian: Fianchetto: 6...c5 7 0-0 without d5 by White.} Bd7 {[%emt 0:30:12]} 13. Bd2 {[%emt 0:11:11]} Qb6 {[%emt 0:01:14]} 14. Be3 {[%emt 0:06:42] White is better.} Qa5 {[%emt 0:00:55]} 15. a3 $1 {[%emt 0:07:28] [#]} Ng4 $146 {[%emt 0:40:53] [#]} ({Predecessor:} 15... a6 16. b4 Qd8 17. Nc3 Rc8 18. Rc1 Rxc4 19. Qd3 Be6 20. Nd5 Nxd5 21. Bxd5 Rxc1 22. Rxc1 {1-0 (36) Gutman,L (2454)-Solodovnichenko,Y (2578) Werther 2010}) 16. Bd4 {[%emt 0:04:37]} Bxd4 {[%emt 0:00:58]} 17. Qxd4 {[%emt 0:00:18]} Rfc8 {[%emt 0:03:09]} 18. Rfc1 {[%emt 0:13:12] White is more active.} Ne5 {[%emt 0:15:31][%cal Oc8c4]} 19. Nxa7 {[%emt 0:06:54]} Qc5 {[%emt 0:00:36]} (19... Rc7 $16) 20. Qxc5 $18 {[%emt 0:07:57]} Rxc5 {[%emt 0:00:04]} 21. f4 {[%emt 0:02:03]} Ng4 {[%emt 0:03:18]} (21... Nxc4 $2 22. b4 Rc7 {[#]} 23. Nc6 $1 {[%mdl 512]} Rxc6 24. Bxc6 Bxc6 25. Rxc4 $18) 22. b4 {[%emt 0:00:26]} Rc7 {[%emt 0:00:17]} 23. Nb5 {[%emt 0:00:07]} Rcc8 {[%emt 0:00:14]} 24. Bf3 {[%emt 0:07:09]} d5 {[%emt 0:01:51]} 25. Bxd5 {[%emt 0:01:01]} Ne3 {[%emt 0:00:18]} 26. Nd4 {[%emt 0:02:49]} e6 {[%emt 0:00:26]} 27. Bf3 {[%emt 0:00:28]} e5 {[%emt 0:00:44]} (27... Nxc4 $142 28. Nb3 Be8) 28. fxe5 {[%emt 0:00:48]} Rxc4 {[%emt 0:00:07]} 29. Kf2 {[%emt 0:03:17]} Ng4+ {[%emt 0:00:08]} 30. Bxg4 {[%emt 0:00:10]} Rxc1 {[%emt 0:00:04]} (30... Rxd4 $142 31. Bf3 Ba4) 31. Rxc1 {[%emt 0:00:10]} Bxg4 {[%emt 0:00:01][%mdl 4096] Endgame KRB-KRN} 32. b5 {[%emt 0:01:57]} Kg7 {[%emt 0:00:40]} 33. Rc7 {[%emt 0:01:59]} Kf8 {[%emt 0:01:34]} 34. a4 {[%emt 0:00:17] And now a5 would win.} Ke8 {[%emt 0:00:02]} 35. e6 {[%emt 0:02:01]} Bxe6 {[%emt 0:00:31]} 36. Nxe6 {[%emt 0:00:07] Nd4 is the strong threat.} fxe6 {[%emt 0:00:05]} 37. Rxh7 {[%emt 0:00:17] White took control after the opening.  Weighted Error Value: White=0.06 (flawless) /Black=0.70} 1-0